fUSD/lending_fUSD_20251105
["ID","MTS","AMOUNT","RATE_DAILY","PERIOD"]
[393197495,1762311056292,-172619.3723283,0.00038283,2]
[393197496,1762311056301,-15164.2866027,0.00038283,2]
[393197497,1762311056311,-232.60376126,0.00038283,2]
[393197498,1762311056320,-176.52723095,0.00038283,2]
[393197499,1762311056330,-24928.76447561,0.00038283,2]
[393197500,1762311056344,-478.13704966,0.00038283,2]
[393197501,1762311056355,-315.95788128,0.00038283,2]
[393197502,1762311056367,-1017.15,0.00038283,2]
[393197503,1762311056378,-1767.20517906,0.00038283,2]
[393197504,1762311056387,-6000.0,0.00038283,2]
[393197505,1762311056396,-381.30648857,0.00038283,2]
[393197506,1762311056406,-334.89704779,0.00038283,2]
[393197507,1762311056417,-1158.03597774,0.00038283,2]
[393197508,1762311056427,-286.81938026,0.00038283,2]
[393197509,1762311056438,-762.97410849,0.00038283,2]
[393197510,1762311056447,-1196.04906047,0.00038283,2]
[393197511,1762311056456,-436.02994057,0.00038283,2]
[393197512,1762311056543,-485.60103348,0.00034114,15]
[393197513,1762311056552,-9692.39896652,0.00035815,2]
[393197514,1762311056633,-2518.88504,0.00035815,2]
[393197515,1762311056645,-1190.68746985,0.00035815,2]
[393197516,1762311056654,-485.60103348,0.00036149,15]
[393197517,1762311056664,-477.03,0.00036822,2]
[393197518,1762311056673,-549.09,0.00036834,2]
[393197519,1762311056682,-156.8301233,0.000372,120]
[393197520,1762311056691,-150.0,0.00037534,2]
[393197521,1762311056700,-415.63,0.00037534,2]
[393197522,1762311056710,-698.44,0.00038082,2]
[393197523,1762311056719,-3535.43853108,0.00038183,2]
[393197524,1762311056728,-13401.97147637,0.00038183,2]
[393197525,1762311056737,-49509.55866603,0.00038283,2]
[393197526,1762311056746,-1706.80103768,0.00038283,2]
[393197527,1762311056756,-572.23292117,0.00038283,2]
[393197528,1762311056765,-150.0,0.00038283,2]
[393197529,1762311056774,-7891.13280144,0.00038283,2]
[393197530,1762311056783,-636.41495372,0.00038283,2]
[393197531,1762311056794,-218.17708577,0.00038283,2]
[393197532,1762311056804,-778.18797821,0.00038283,14]
[393197533,1762311056813,-1083.69432226,0.00038283,2]
[393197534,1762311056822,-2500.0,0.00038283,2]
[393197535,1762311056832,-588.31453734,0.00038283,2]
[393197536,1762311056841,-347.54636763,0.00038283,2]
[393197537,1762311056850,-1100.0,0.00038283,2]
[393197538,1762311056859,-926.69220378,0.00038283,2]
[393197539,1762311056869,-15828.28890344,0.00038283,2]
[393197540,1762311056878,-489.26441749,0.00038283,2]
[393197541,1762311056887,-1612.64877558,0.00038283,2]
[393197542,1762311056896,-557.06259459,0.00038283,2]
[393197543,1762311056907,-5084.0732275,0.00038283,2]
[393197544,1762311056916,-1027.92852952,0.00038283,2]
[393197545,1762311056927,-370.6392822,0.00038283,2]
[393197546,1762311056936,-2238.63287963,0.00038283,2]
[393197547,1762311056947,-23412.95368818,0.00038283,2]
[393197548,1762311056956,-15028.87203194,0.00038283,2]
[393197549,1762311056966,-1866.20520923,0.00038283,2]
[393197550,1762311056975,-602.0469878,0.00038283,2]
[393197551,1762311056987,-1136.17862421,0.00038283,2]
[393197552,1762311056998,-168275.48405287,0.00038283,2]
[393197553,1762311057011,-384.27167821,0.00038283,2]
[393197554,1762311057023,-4591.9384533,0.00038283,2]
[393197555,1762311057040,-156.8301233,0.000372,120]
[393197556,1762311057049,-354.30584516,0.00038283,2]
[393197566,1762311126001,500.0,0.00014999,2]
[393197567,1762311126252,500.0,0.00014999,2]
[393197568,1762311126512,500.0,0.00014999,2]
[393197569,1762311126750,636.74225849,0.00014999,2]
[393197571,1762311128350,200.0,0.00038283,31]
[393197573,1762311155030,500.0,0.00014999,2]
[393197574,1762311155253,500.0,0.00014999,2]
[393197575,1762311155503,500.0,0.00014999,2]
[393197576,1762311155745,500.0,0.00014999,2]
[393197577,1762311155995,500.0,0.00014999,2]
[393197578,1762311163310,150.0,0.00038283,30]
[393197584,1762311234750,500.0,0.00014999,2]
[393197585,1762311234976,500.0,0.00014999,2]
[393197586,1762311235241,500.0,0.00014999,2]
[393197587,1762311235489,500.0,0.00014999,2]
[393197588,1762311235727,500.0,0.00014999,2]
[393197591,1762311258296,500.0,0.00014999,2]
[393197592,1762311258587,500.0,0.00014999,2]
[393197593,1762311258840,500.0,0.00014999,2]
[393197594,1762311259091,500.0,0.00014999,2]
[393197595,1762311259335,500.0,0.00014999,2]
[393197605,1762311337407,363.26774151,0.00014999,2]
[393197606,1762311337438,136.73225849,0.00014999,2]
[393197607,1762311337690,500.0,0.00014999,2]
[393197608,1762311337968,500.0,0.00014999,2]
[393197609,1762311338224,500.0,0.00014999,2]
[393197610,1762311338473,500.0,0.00014999,2]
[393197614,1762311350171,-500.0,0.00016772,2]
[393197615,1762311350201,-500.0,0.00016921,2]
[393197616,1762311350229,-500.0,0.00016921,2]
[393197617,1762311350257,-300.0,0.00016922,2]
[393197618,1762311350286,-500.40594089,0.00016973,2]
[393197619,1762311350318,-178.19806557,0.00017949,2]
[393197620,1762311350350,-425.2962,0.00018049,2]
[393197621,1762311350381,-300.0,0.00018559,2]
[393197622,1762311350412,-300.0,0.00019261,2]
[393197623,1762311350443,-300.0,0.00019261,2]
[393197624,1762311350472,-300.0,0.00019261,2]
[393197625,1762311350502,-592.20958708,0.00019998,2]
[393197626,1762311352703,-607.79041292,0.00019998,2]
[393197627,1762311352733,-500.0,0.00019999,2]
[393197628,1762311352764,-500.0,0.00019999,2]
[393197629,1762311352794,-300.0,0.00020265,2]
[393197630,1762311352822,-500.0,0.00020266,2]
[393197631,1762311352853,-500.0,0.00020266,2]
[393197632,1762311352882,-500.0,0.00020266,2]
[393197633,1762311352911,-500.0,0.00020266,2]
[393197636,1762311365946,640.1517392,0.00014999,2]
[393197640,1762311421548,300.0,0.00020272,2]
[393197642,1762311426262,177.01045909,0.00038273,31]
[393197648,1762311511867,500.0,0.00016672,2]
[393197655,1762311585410,500.0,0.00016921,2]
[393197656,1762311585663,244.27743496,0.00019999,2]
[393197657,1762311585686,255.72256504,0.00019999,2]
[393197668,1762311654679,3291.5743,0.00038266,30]
[393197669,1762311661534,270.46031638,0.00020272,2]
[393197670,1762311661561,2349.49195906,0.00020272,2]
[393197671,1762311661589,353.7381067,0.00020272,2]
[393197673,1762311680865,241.9165,0.00020173,2]
[393197676,1762311731269,151.0,0.0002026,2]
[393197677,1762311731881,151.0,0.0002026,2]
[393197678,1762311732498,151.0,0.0002026,2]
[393197679,1762311733105,151.0,0.0002026,2]
[393197680,1762311733720,151.0,0.0002026,2]
[393197681,1762311734323,151.0,0.0002026,2]
[393197682,1762311734951,151.0,0.0002026,2]
[393197683,1762311735599,151.0,0.0002026,2]
[393197684,1762311736266,151.0,0.0002026,2]
[393197685,1762311736869,151.0,0.0002026,2]
[393197686,1762311737506,151.0,0.0002026,2]
[393197687,1762311738147,151.0,0.0002026,2]
[393197688,1762311738782,151.0,0.0002026,2]
[393197689,1762311739889,151.0,0.0002026,2]
[393197690,1762311740526,151.0,0.0002026,2]
[393197691,1762311741156,151.0,0.0002026,2]
[393197692,1762311741775,151.0,0.0002026,2]
[393197693,1762311742423,151.0,0.0002026,2]
[393197694,1762311743060,151.0,0.0002026,2]
[393197695,1762311743704,151.0,0.0002026,2]
[393197696,1762311781250,300.0,0.00020272,2]
[393197697,1762311781614,1100.0,0.00020272,2]
[393197705,1762311841277,300.0,0.00020272,2]
[393197710,1762311897825,-500.0,0.00020273,2]
[393197711,1762311897853,-500.0,0.00020273,2]
[393197712,1762311897882,-250.0,0.00020273,2]
[393197713,1762311897912,-233.0,0.00020273,2]
[393197714,1762311897941,-1000.0,0.00020821,2]
[393197715,1762311897969,-985.96504137,0.00020821,2]
[393197716,1762311897997,-500.0,0.00020967,2]
[393197717,1762311898030,-706.07991726,0.00021265,2]
[393197718,1762311898213,-649.92008274,0.00021265,2]
[393197719,1762311898243,-1328.7490067,0.00021368,2]
[393197720,1762311898273,-1000.0,0.00021515,2]
[393197721,1762311898308,-500.86745626,0.00021983,2]
[393197722,1762311898336,-162.45,0.00022,2]
[393197723,1762311898365,-1216.0369086,0.00022063,2]
[393197724,1762311900861,-283.9630914,0.00022063,2]
[393197725,1762311903931,-1200.0,0.00022062,2]
[393197726,1762311904184,-0.02,0.00022063,2]
[393197727,1762311906947,-0.04,0.00022063,2]
[393197728,1762311907053,-4042.47590505,0.00022063,2]
[393197729,1762311907101,-4042.55590505,0.00022063,2]
[393197730,1762311907133,-1914.8981899,0.00022063,2]
[393197731,1762311913066,-0.02,0.00022063,2]
[393197732,1762311913091,-9999.97,0.00022063,2]
[393197733,1762311919297,-10000.01,0.00022063,2]
[393197805,1762312231843,-174.156914,0.00021852,2]
[393197806,1762312231852,-760.0025795,0.00021962,3]
[393197808,1762312231862,-760.0025795,0.00021962,3]
[393197809,1762312231873,-1200.0,0.00022062,2]
[393197810,1762312231882,-1003.0,0.00022062,2]
[393197811,1762312231891,-300.0,0.00022062,2]
[393197812,1762312231901,-1200.0,0.00022062,2]
[393197813,1762312231911,-141.95006603,0.00022062,2]
[393197818,1762312237370,-158.04993397,0.00022062,2]
[393197819,1762312237380,-39355.22,0.00022063,2]
[393197820,1762312237390,-5794.0,0.00022063,2]
[393197821,1762312237399,-530.60716005,0.00022063,2]
[393197822,1762312237409,-270.46031639,0.00022063,2]
[393197823,1762312237418,-554.9128886,0.00022073,2]
[393197824,1762312237428,-500.0,0.00022073,2]
[393197825,1762312237437,-195.78612981,0.00022073,2]
[393197826,1762312237447,-506.43722381,0.00022073,2]
[393197827,1762312237456,-500.0,0.00022073,2]
[393197828,1762312237468,-279.6991,0.000222,2]
[393197829,1762312237478,-1852.42,0.00022242,2]
[393197830,1762312237487,-7109.51,0.00022242,2]
[393197831,1762312237497,-2231.77,0.00022242,2]
[393197832,1762312237507,-500.0,0.00022273,2]
[393197833,1762312237517,-500.0,0.00022273,2]
[393197834,1762312237526,-500.0,0.00022273,2]
[393197835,1762312237536,-500.0,0.00022273,2]
[393197836,1762312237548,-564.89446183,0.00022273,2]
[393197837,1762312237558,-299.99,0.000223,7]
[393197838,1762312237568,-999.99,0.000223,2]
[393197839,1762312237577,-9999.99,0.000223,2]
[393197840,1762312237587,-499.99,0.000223,2]
[393197841,1762312237597,-9999.99,0.000223,2]
[393197842,1762312237606,-9999.99,0.000223,2]
[393197843,1762312237616,-2000.0,0.00022611,2]
[393197844,1762312237625,-500.0,0.00022621,2]
[393197845,1762312237635,-1000.0,0.00022821,2]
[393197847,1762312237644,-1000.0,0.00022821,2]
[393197849,1762312237654,-875.11589732,0.00022821,2]
[393197851,1762312237663,-2500.0,0.00023158,2]
[393197852,1762312237673,-166.66,0.00023263,30]
[393197853,1762312237682,-1521.19557868,0.00023368,2]
[393197854,1762312237692,-1197.03833275,0.00023368,2]
[393197857,1762312237704,-179.51,0.00023435,2]
[393197859,1762312237718,-150.99,0.00023435,2]
[393197861,1762312237728,-1186.14,0.00023435,2]
[393197863,1762312237737,-2507.38751411,0.00023706,2]
[393197865,1762312237746,-166.66,0.00023753,30]
[393197867,1762312237756,-420.0,0.00023972,2]
[393197869,1762312237765,-500.0,0.00023973,2]
[393197871,1762312237774,-406.62378491,0.00023973,2]
[393197873,1762312237784,-237.23661618,0.00023986,2]
[393197875,1762312237793,-59391.0,0.00024,2]
[393197877,1762312237803,-250.0,0.00024038,2]
[393197879,1762312237813,-272.19370628,0.00024038,2]
[393197881,1762312237823,-1680.0,0.00024084,2]
[393197883,1762312237831,-166.66,0.00024243,30]
[393197884,1762312237841,-250.0,0.00024268,2]
[393197885,1762312237851,-7263.41,0.00024466,2]
[393197886,1762312237860,-1000.0,0.00024521,2]
[393197887,1762312237869,-3391.62,0.00024522,2]
[393197888,1762312237879,-500.0,0.00024589,2]
[393197889,1762312237888,-500.0,0.00024589,2]
[393197890,1762312237897,-500.0,0.00024589,2]
[393197891,1762312237906,-500.0,0.00024598,2]
[393197892,1762312237916,-500.0,0.00024598,2]
[393197893,1762312237926,-500.0,0.00024598,2]
[393197894,1762312237935,-500.0,0.00024598,2]
[393197895,1762312237954,-332.92826953,0.00024598,2]
[393197896,1762312237964,-500.0,0.00024598,2]
[393197897,1762312237974,-500.0,0.00024598,2]
[393197898,1762312237984,-500.0,0.00024598,2]
[393197899,1762312237993,-500.0,0.00024598,2]
[393197900,1762312238003,-500.0,0.00024598,2]
[393197901,1762312238013,-500.0,0.00024598,2]
[393197902,1762312238023,-500.0,0.00024598,2]
[393197903,1762312238034,-9626.29,0.00024599,2]
[393197904,1762312238043,-166.66,0.00024732,30]
[393197905,1762312238054,-500.0,0.00024799,2]
[393197906,1762312238064,-500.0,0.00024799,2]
[393197907,1762312238074,-500.0,0.00024799,2]
[393197908,1762312238085,-500.0,0.00024799,2]
[393197909,1762312238094,-500.0,0.00024799,2]
[393197910,1762312238104,-500.0,0.00024799,2]
[393197911,1762312238114,-500.0,0.00024799,2]
[393197912,1762312238124,-500.0,0.00024799,2]
[393197913,1762312238134,-500.0,0.00024799,2]
[393197914,1762312238144,-1488.74,0.00024799,2]
[393197915,1762312238154,-500.0,0.00024899,2]
[393197916,1762312238163,-500.0,0.00024899,2]
[393197917,1762312238173,-500.0,0.00024899,2]
[393197918,1762312238183,-500.0,0.00024899,2]
[393197919,1762312238194,-500.0,0.00024899,2]
[393197920,1762312238205,-500.0,0.00024899,2]
[393197921,1762312238216,-500.0,0.00024899,2]
[393197922,1762312238226,-500.0,0.00024932,2]
[393197923,1762312238235,-500.0,0.00024932,2]
[393197924,1762312238245,-500.0,0.00024932,2]
[393197925,1762312238255,-500.0,0.00024932,2]
[393197926,1762312238264,-200.0,0.00024951,2]
[393197927,1762312238274,-6314.67,0.00024951,2]
[393197928,1762312238283,-1500.0,0.00025068,2]
[393197929,1762312238294,-1488.74,0.00025073,2]
[393197930,1762312238306,-150.0,0.00025086,2]
[393197931,1762312238317,-150.0,0.00025113,2]
[393197932,1762312238330,-150.0,0.00025135,2]
[393197933,1762312238340,-500.87783296,0.00025137,2]
[393197934,1762312238351,-1000.0,0.00025137,2]
[393197935,1762312238360,-1011.48394637,0.00025137,2]
[393197936,1762312238371,-166.66,0.00025222,30]
[393197937,1762312238381,-500.0,0.00025232,2]
[393197938,1762312238392,-500.0,0.00025232,2]
[393197939,1762312238401,-477.76462643,0.00025314,2]
[393197940,1762312238410,-1488.74,0.00025347,2]
[393197941,1762312238422,-1000.0,0.000254,2]
[393197942,1762312238431,-2500.0,0.000254,2]
[393197943,1762312238441,-2000.0,0.000255,2]
[393197944,1762312238451,-2000.0,0.000255,2]
[393197945,1762312238460,-2000.0,0.00025616,2]
[393197946,1762312238470,-1488.74,0.00025621,2]
[393197947,1762312238480,-1500.0,0.00025685,2]
[393197948,1762312238490,-166.66,0.00025712,30]
[393197949,1762312238500,-1488.74,0.00025895,2]
[393197950,1762312238509,-587.0,0.00026048,2]
[393197951,1762312238523,-193.78,0.00026107,2]
[393197952,1762312238533,-2500.0,0.00026164,2]
[393197953,1762312238544,-1488.74,0.00026169,2]
[393197954,1762312238556,-1256.47893979,0.00026233,2]
[393197955,1762312238567,-668.0,0.00026293,2]
[393197956,1762312238577,-500.0,0.00026416,2]
[393197957,1762312238587,-500.0,0.00026416,2]
[393197958,1762312238598,-500.0,0.00026416,2]
[393197959,1762312238608,-1488.74,0.00026443,2]
[393197960,1762312238617,-3000.0,0.00026712,2]
[393197961,1762312238627,-1488.74,0.00026717,2]
[393197962,1762312238636,-1488.74,0.00026991,2]
[393197963,1762312238646,-1099.96,0.00027,2]
[393197964,1762312238656,-2165.26097583,0.0002726,2]
[393197965,1762312238666,-1488.74,0.00027265,2]
[393197966,1762312238676,-500.0,0.00027397,2]
[393197967,1762312238685,-500.0,0.00027397,2]
[393197968,1762312238695,-500.0,0.00027397,2]
[393197969,1762312238704,-500.0,0.00027397,2]
[393197970,1762312238713,-500.0,0.00027397,2]
[393197971,1762312238727,-500.0,0.00027397,2]
[393197972,1762312238737,-500.0,0.00027397,2]
[393197973,1762312238747,-500.0,0.00027397,2]
[393197974,1762312238757,-500.0,0.00027397,2]
[393197975,1762312238776,-500.0,0.00027397,2]
[393197976,1762312238787,-500.0,0.00027397,2]
[393197977,1762312238797,-500.0,0.00027397,2]
[393197978,1762312238807,-500.0,0.00027397,2]
[393197979,1762312238817,-500.0,0.00027397,2]
[393197980,1762312238828,-500.0,0.00027397,2]
[393197981,1762312238837,-500.0,0.00027397,2]
[393197982,1762312238847,-500.0,0.00027397,2]
[393197983,1762312238857,-500.0,0.00027397,2]
[393197984,1762312238868,-500.0,0.00027397,2]
[393197985,1762312238879,-500.0,0.00027397,2]
[393197986,1762312238890,-500.0,0.00027397,2]
[393197987,1762312238900,-500.0,0.00027397,2]
[393197988,1762312238910,-500.0,0.00027397,2]
[393197989,1762312238921,-500.0,0.00027397,2]
[393197990,1762312238931,-500.0,0.00027397,2]
[393197991,1762312238942,-500.0,0.00027397,2]
[393197992,1762312238952,-500.0,0.00027397,2]
[393197993,1762312238961,-500.0,0.00027397,2]
[393197994,1762312238971,-500.0,0.00027397,2]
[393197995,1762312238981,-500.0,0.00027397,2]
[393197996,1762312238991,-500.0,0.00027397,2]
[393197997,1762312239001,-500.0,0.00027397,2]
[393197998,1762312239011,-500.0,0.00027397,2]
[393197999,1762312239021,-500.0,0.00027397,2]
[393198000,1762312239031,-500.0,0.00027397,2]
[393198001,1762312239042,-188.52875772,0.00027397,2]
[393198002,1762312239052,-500.0,0.00027397,2]
[393198003,1762312239062,-500.0,0.00027397,2]
[393198004,1762312239074,-500.0,0.00027397,2]
[393198005,1762312239084,-500.0,0.00027397,2]
[393198006,1762312239095,-1099.96,0.000275,2]
[393198007,1762312239105,-1488.74,0.00027539,14]
[393198008,1762312239118,-1488.80432609,0.00027813,14]
[393198009,1762312239129,-157.13,0.00028,20]
[393198010,1762312239139,-1099.96,0.00028,30]
[393198011,1762312239149,-823.0,0.00028304,2]
[393198012,1762312239159,-152.42601185,0.00028469,2]
[393198013,1762312239169,-154.41907162,0.00028469,2]
[393198014,1762312239179,-154.17848018,0.00028469,2]
[393198015,1762312239190,-150.0,0.00028469,2]
[393198016,1762312239200,-150.0,0.00028469,2]
[393198017,1762312239210,-162.35889361,0.00028469,2]
[393198018,1762312239221,-500.0,0.00028469,2]
[393198019,1762312239231,-150.0,0.00028469,2]
[393198020,1762312239241,-150.0,0.00028469,2]
[393198021,1762312239250,-150.0,0.00028469,2]
[393198022,1762312239260,-500.0,0.00028469,2]
[393198023,1762312239270,-150.0,0.00028469,2]
[393198024,1762312239280,-150.0,0.00028469,2]
[393198025,1762312239290,-150.0,0.00028469,2]
[393198026,1762312239304,-500.0,0.00028469,2]
[393198027,1762312239314,-500.0,0.00028469,2]
[393198028,1762312239326,-500.0,0.00028469,2]
[393198029,1762312239336,-500.0,0.00028469,2]
[393198030,1762312239347,-150.0,0.00028606,2]
[393198031,1762312239357,-150.0,0.00028606,2]
[393198032,1762312239367,-500.0,0.00028606,2]
[393198033,1762312239377,-608.65523748,0.00028606,2]
[393198034,1762312239387,-150.0,0.00028606,2]
[393198035,1762312239397,-500.0,0.00028606,2]
[393198036,1762312239407,-500.0,0.00028606,2]
[393198037,1762312239417,-500.0,0.00028606,2]
[393198038,1762312239427,-150.0,0.00028743,2]
[393198040,1762312239437,-150.0,0.00028743,2]
[393198042,1762312239447,-252.64109713,0.00028743,2]
[393198044,1762312239457,-294.52143738,0.00028743,2]
[393198046,1762312239467,-158.74802862,0.0002888,2]
[393198048,1762312239477,-215.68751895,0.0002888,2]
[393198049,1762312239487,-261.70059104,0.0002888,2]
[393198050,1762312239498,-150.0,0.0002888,2]
[393198051,1762312239508,-150.42731866,0.0002888,2]
[393198052,1762312239521,-152.10989267,0.0002888,2]
[393198053,1762312239531,-150.8199178,0.0002888,2]
[393198054,1762312239541,-150.8104487,0.0002888,2]
[393198055,1762312239551,-158.7764836,0.0002888,2]
[393198056,1762312239561,-150.0,0.0002888,2]
[393198057,1762312239571,-154.29275356,0.0002888,2]
[393198058,1762312239581,-152.72526817,0.0002888,2]
[393198059,1762312239591,-150.53676099,0.0002888,2]
[393198060,1762312239600,-150.0,0.0002888,2]
[393198061,1762312239609,-150.0,0.0002888,2]
[393198062,1762312239856,-500.0,0.0002888,2]
[393198063,1762312239866,-500.0,0.0002888,2]
[393198064,1762312239876,-150.0,0.0002888,2]
[393198065,1762312239884,-150.59572911,0.0002888,2]
[393198066,1762312239894,-150.0,0.0002888,2]
[393198067,1762312239903,-150.50069053,0.0002888,2]
[393198068,1762312239912,-152.84105378,0.0002888,2]
[393198069,1762312239922,-500.0,0.0002888,2]
[393198070,1762312239931,-500.0,0.0002888,2]
[393198071,1762312239940,-500.0,0.0002888,2]
[393198072,1762312239949,-213.18490842,0.0002888,2]
[393198073,1762312239959,-500.0,0.0002888,2]
[393198074,1762312239969,-155.34029524,0.0002888,2]
[393198076,1762312239978,-500.0,0.0002888,2]
[393198078,1762312239987,-433.0,0.0002888,2]
[393198080,1762312239996,-500.0,0.0002888,2]
[393198081,1762312240006,-150.8351521,0.0002888,2]
[393198082,1762312240015,-556.0,0.0002888,2]
[393198084,1762312240032,-287.34105008,0.00028917,2]
[393198085,1762312240043,-500.0,0.00029008,2]
[393198086,1762312240053,-9038.86,0.00029009,2]
[393198087,1762312240063,-14284.94,0.00029009,2]
[393198088,1762312240073,-170.04703191,0.00029017,2]
[393198089,1762312240083,-150.82628027,0.00029017,2]
[393198090,1762312240092,-154.29458154,0.00029017,2]
[393198091,1762312240102,-150.0,0.00029017,2]
[393198092,1762312240111,-150.0,0.00029017,2]
[393198093,1762312240121,-500.0,0.00029017,2]
[393198094,1762312240130,-511.82257501,0.00029017,2]
[393198095,1762312240140,-152.83385556,0.00029017,2]
[393198096,1762312240149,-150.0,0.00029017,2]
[393198097,1762312240159,-500.0,0.00029017,2]
[393198098,1762312240168,-500.0,0.00029017,2]
[393198099,1762312240178,-433.0,0.00029017,2]
[393198100,1762312240188,-500.0,0.00029017,2]
[393198101,1762312240198,-556.0,0.00029017,2]
[393198102,1762312240207,-150.0,0.00029073,5]
[393198103,1762312240216,-150.0,0.00029154,2]
[393198104,1762312240230,-500.0,0.00029154,2]
[393198105,1762312240239,-159.94877796,0.00029154,2]
[393198106,1762312240249,-500.0,0.00029154,2]
[393198107,1762312240258,-500.0,0.00029154,2]
[393198108,1762312240268,-433.0,0.00029154,2]
[393198109,1762312240278,-564.94863932,0.00029154,2]
[393198110,1762312240288,-556.0,0.00029154,2]
[393198111,1762312240301,-1966.0,0.000292,2]
[393198112,1762312240311,-1000.0,0.000292,2]
[393198113,1762312240320,-203.09765029,0.00029291,2]
[393198114,1762312240330,-500.0,0.00029291,2]
[393198115,1762312240340,-500.0,0.00029291,2]
[393198116,1762312240350,-500.0,0.00029291,2]
[393198117,1762312240359,-433.0,0.00029291,2]
[393198118,1762312240370,-556.0,0.00029291,2]
[393198119,1762312240381,-179.51,0.00029294,2]
[393198120,1762312240390,-487.30061184,0.00029428,2]
[393198121,1762312240400,-500.0,0.00029428,2]
[393198122,1762312240409,-500.0,0.00029428,2]
[393198123,1762312240422,-433.0,0.00029428,2]
[393198124,1762312240432,-556.0,0.00029428,2]
[393198125,1762312240442,-500.0,0.00029565,2]
[393198126,1762312240452,-487.04730745,0.00029565,2]
[393198127,1762312240461,-433.0,0.00029565,2]
[393198128,1762312240471,-556.0,0.00029565,2]
[393198129,1762312240480,-250.0,0.00029621,5]
[393198130,1762312240490,-381.56336037,0.00029702,2]
[393198131,1762312240500,-433.0,0.00029702,2]
[393198132,1762312240512,-556.0,0.00029702,2]
[393198133,1762312240523,-162.32794439,0.00029788,2]
[393198134,1762312240534,-433.0,0.00029839,2]
[393198135,1762312240545,-556.0,0.00029839,2]
[393198136,1762312240556,-433.0,0.00029976,2]
[393198137,1762312240567,-556.0,0.00029976,2]
[393198138,1762312240576,-158.0,0.0003,30]
[393198139,1762312240586,-433.0,0.00030113,2]
[393198140,1762312240595,-556.0,0.00030113,2]
[393198141,1762312240605,-350.0,0.00030168,5]
[393198142,1762312240617,-287.34105002,0.00030239,2]
[393198143,1762312240628,-433.0,0.0003025,2]
[393198144,1762312240638,-556.0,0.0003025,2]
[393198145,1762312240648,-1258.13,0.00030359,2]
[393198146,1762312240659,-433.0,0.00030387,2]
[393198147,1762312240669,-556.0,0.00030387,2]
[393198148,1762312240681,-433.0,0.00030524,2]
[393198149,1762312240691,-556.0,0.00030524,2]
[393198150,1762312240703,-433.0,0.00030661,2]
[393198151,1762312240714,-556.0,0.00030661,2]
[393198152,1762312240724,-531.80242415,0.00030716,5]
[393198153,1762312240734,-152.0,0.00030717,3]
[393198154,1762312240743,-1152.0,0.00030755,2]
[393198155,1762312240753,-433.0,0.00030798,2]
[393198156,1762312240763,-556.0,0.00030798,2]
[393198157,1762312240773,-433.0,0.00030935,2]
[393198158,1762312240783,-556.0,0.00030935,2]
[393198159,1762312240793,-999.0,0.00030974,3]
[393198160,1762312240803,-158.0,0.00031,31]
[393198161,1762312240812,-433.0,0.00031072,2]
[393198162,1762312240822,-556.0,0.00031072,2]
[393198163,1762312240832,-8797.75,0.00031133,2]
[393198164,1762312240841,-2231.77,0.00031139,2]
[393198165,1762312240851,-433.0,0.00031209,2]
[393198166,1762312240860,-556.0,0.00031209,2]
[393198167,1762312240869,-433.0,0.00031346,2]
[393198168,1762312240880,-556.0,0.00031346,2]